bitfinex-derivatives/quotes_SOLF0:USTF0_20250125
["timestamp","ask_amount","ask_price","bid_price","bid_amount"]
[1737813881601,0.03042067,249.49,249.4,2.6373]
[1737813882006,0.03042067,249.49,249.4,1.3021]
[1737813882298,4.0089,249.48,249.4,5.3121]
[1737813882502,4.0089,249.48,249.4,1.3021]
[1737813882805,4.0092,249.46,249.4,1.3021]
[1737813882996,0.03042067,249.49,249.4,1.3021]
[1737813884100,4.009,249.48,249.42,4.0098]
[1737813885600,4.0092,249.46,249.4,4.0101]
[1737813885805,4.0092,249.46,249.34,1.3524]
[1737813886201,0.02641788,249.42,249.34,1.3524]
[1737813886406,0.02641788,249.42,249.41,4.01]
[1737813887704,0.02641788,249.42,249.34,1.3524]
[1737813888603,0.02641788,249.42,249.4,4.0101]
[1737813889104,0.02641788,249.42,249.34,1.3524]
[1737813890102,0.02641788,249.42,249.36,9.26120268]
[1737813890804,0.02641788,249.42,249.41,4.01]
[1737813891501,0.02641788,249.42,249.33,9.26120268]
[1737813891697,4.0102,249.4,249.33,4.0112]
[1737813891899,4.0102,249.4,249.26,10.55060268]
[1737813892307,0.02548166,249.35,249.26,10.55060268]
[1737813892607,0.02548166,249.35,249.32,4.0113]
[1737813892907,0.02548166,249.35,249.26,10.55060268]
[1737813893201,0.02548166,249.35,249.28,4.012]
[1737813893406,0.02548166,249.35,249.26,10.55060268]
[1737813894105,0.02548166,249.35,249.32,4.0113]
[1737813894999,0.02548166,249.35,249.33,4.0113]
[1737813895703,9.26120268,249.53,249.33,9.26120268]
[1737813895907,9.26120268,249.56,249.38,9.26120268]
[1737813896108,9.26120268,249.56,249.41,9.26120268]
[1737813896406,4.008,249.54,249.47,4.009]
[1737813896607,9.26120268,249.56,249.47,4.009]
[1737813896908,0.02749705,249.53,249.48,0.02837873]
[1737813897306,0.02749705,249.53,249.48,4.03727873]
[1737813897503,0.02749705,249.53,249.48,0.02837873]
[1737813898005,0.02749705,249.53,249.51,4.0083]
[1737813900202,1.3287,249.64,249.5,9.26120268]
[1737813900408,9.26120268,249.68,249.53,9.26120268]
[1737813900702,10.57610268,249.71,249.56,9.26120268]
[1737813900910,9.26120268,249.71,249.57,1.3098]
[1737813901407,0.02728788,249.66,249.62,0.02537108]
[1737813901606,0.02728788,249.66,249.64,4.0062]
[1737813902306,0.02728788,249.66,249.62,0.02537108]
[1737813904412,9.26120268,249.65,249.62,0.02537108]
[1737813905505,4.0063,249.64,249.62,0.02537108]
[1737813905812,0.02728788,249.66,249.62,0.02537108]
[1737813906207,9.26120268,249.64,249.62,0.02537108]
[1737813906403,9.26120268,249.64,249.52,1.2909]
[1737813906607,9.26120268,249.61,249.52,1.2909]
[1737813906909,4.007,249.6,249.52,1.2909]
[1737813907614,0.02932343,249.58,249.54,0.0305047]
[1737813908408,4.0074,249.57,249.54,0.0305047]
[1737813908713,0.02932343,249.58,249.54,0.0305047]
[1737813909015,4.0077,249.56,249.54,0.0305047]
[1737813909407,9.26120268,249.55,249.43,1.3688]
[1737813909612,4.0082,249.52,249.45,4.0093]
[1737813909921,9.26120268,249.55,249.45,4.0093]
[1737813910617,0.025476,249.52,249.45,4.0093]
[1737813911217,9.28667868,249.52,249.43,1.3688]
[1737813911717,4.0087,249.49,249.43,1.3688]
[1737813911916,9.28667868,249.52,249.4,4.0101]
[1737813912120,9.26120268,249.52,249.36,9.26120268]
[1737813912319,0.02777121,249.48,249.36,9.26120268]
[1737813912516,0.02777121,249.48,249.43,4.0095]
[1737813912711,0.02777121,249.48,249.39,9.26120268]
[1737813912911,13.26860268,249.58,249.43,9.26120268]
[1737813913118,193.0,249.59,249.46,9.26120268]
[1737813913618,193.0,249.59,249.52,4.0081]
[1737813913815,4.007,249.6,249.52,4.0081]
[1737813914222,4.007,249.6,249.54,0.02564686]
[1737813914223,0.02698582,249.58,249.54,0.02564686]
[1737813917925,4.03428582,249.58,249.54,0.02564686]
[1737813918825,0.02698582,249.58,249.57,4.0074]
[1737813920122,9.26120268,249.7,249.63,4.0065]
[1737813920527,9.26120268,249.7,249.59,4.007]
[1737813920726,9.26120268,249.7,249.55,9.26120268]
[1737813921023,13.26660268,249.7,249.59,4.007]
[1737813921227,0.0264207,249.65,249.6,0.0267314]
[1737813921629,0.0264207,249.65,249.62,4.0065]
[1737813922324,0.0264207,249.65,249.6,0.0267314]
[1737813923332,0.0264207,249.65,249.6,4.0337314]
[1737813925930,4.0326207,249.65,249.6,0.0267314]
[1737813926135,0.0264207,249.65,249.6,0.0267314]
[1737813926338,9.26120268,249.64,249.6,0.0267314]
[1737813927334,4.0066,249.63,249.6,0.0267314]
[1737813927728,0.0264207,249.65,249.6,0.0267314]
[1737813929131,0.0264207,249.65,249.64,4.0063]
[1737813929636,6.5971,249.74,249.61,1.3568]
[1737813930036,6.5971,249.74,249.68,4.0056]
[1737813930229,1.2699,249.74,249.61,10.58216302]
[1737813930635,0.02904825,249.7,249.65,0.02530627]
[1737813931437,0.02904825,249.7,249.69,4.0055]
[1737813937039,0.02904825,249.7,249.65,4.03130627]
[1737813937239,0.02904825,249.7,249.65,0.02530627]
[1737813937639,0.02904825,249.7,249.69,4.0055]
[1737813941945,0.02904825,249.7,249.66,4.006]
[1737813942944,0.02904825,249.7,249.68,4.0057]
[1737813943650,0.02904825,249.7,249.69,4.0055]
[1737813944349,1.3214,249.81,249.67,9.26120268]
[1737813944553,1.3214,249.81,249.7,9.26120268]
[1737813944943,1.3214,249.81,249.76,4.0043]
[1737813945651,1.34936057,249.81,249.76,4.03066928]
[1737813946353,1.34936057,249.81,249.76,0.02636928]
[1737813947351,0.02796057,249.81,249.76,0.02636928]
[1737813948252,0.02796057,249.81,249.77,4.0042]
[1737813948444,0.02796057,249.81,249.76,0.02636928]
[1737813949158,0.02796057,249.81,249.76,4.03066928]
[1737813951755,0.02796057,249.81,249.7,7.88731925]
[1737813951954,0.02796057,249.81,249.58,152.23620934]
[1737813951955,0.02796057,249.81,249.73,9.26120268]
[1737813952155,5.3871,249.87,249.8,4.0037]
[1737813952557,1.3844,249.87,249.8,4.0037]
[1737813952752,0.03050546,249.86,249.81,0.02891834]
[1737813953154,0.03050546,249.86,249.81,4.03251834]
[1737813953458,0.03050546,249.86,249.81,0.02891834]
[1737813955263,9.26120268,249.85,249.81,0.02891834]
[1737813956767,4.0034,249.82,249.81,0.02891834]
[1737813957967,13.26460268,249.82,249.81,0.02891834]
[1737813958167,13.26460268,249.82,249.81,0.00249764]
[1737813959564,13.26460268,249.82,249.71,1.2809]
[1737813959565,9.26120268,249.82,249.71,1.2809]
[1737813959859,9.26120268,249.78,249.71,1.2809]
[1737813960364,13.26530268,249.78,249.73,4.0048]
[1737813960869,0.02862213,249.78,249.73,0.03045283]
[1737813961069,0.02862213,249.78,249.76,4.0043]
[1737813961471,0.02862213,249.78,249.74,4.0045]
[1737813961871,0.02862213,249.78,249.73,0.03045283]
[1737813962670,0.02862213,249.78,249.73,4.03515283]
[1737813962869,0.02862213,249.78,249.73,0.03045283]
[1737813963370,0.02862213,249.78,249.73,4.03525283]
[1737813963570,0.02862213,249.78,249.73,0.03045283]
[1737813965173,0.02862213,249.78,249.76,4.0043]
[1737813966375,0.02862213,249.78,249.75,4.0045]
[1737813967473,0.02862213,249.78,249.77,4.0042]
[1737813967968,0.02862213,249.78,249.73,0.03045283]
[1737813968872,0.02862213,249.78,249.76,4.0044]
[1737813971075,0.02862213,249.78,249.73,0.03045283]
[1737813971276,0.02862213,249.78,249.73,8.03787948]
[1737813971476,0.02862213,249.78,249.73,0.03045283]
[1737813972079,9.26120268,249.77,249.73,0.03045283]
[1737813972970,9.26120268,249.77,249.65,1.3251]
[1737813974180,9.26120268,249.77,249.69,0.02448553]
[1737813974884,4.0049,249.74,249.69,0.02448553]
[1737813975786,9.26120268,249.77,249.69,0.02448553]
[1737813976081,4.0045,249.75,249.69,0.02448553]
[1737813976285,9.26120268,249.77,249.69,0.02448553]
[1737813976885,4.0046,249.75,249.69,0.02448553]
[1737813977086,9.26120268,249.77,249.69,0.02448553]
[1737813977888,4.0049,249.73,249.69,4.02998553]
[1737813978286,9.26120268,249.77,249.69,0.02448553]
[1737813978591,4.0047,249.75,249.7,4.0053]
[1737813980093,0.02862213,249.78,249.69,0.02448553]
[1737813980585,0.02862213,249.78,249.7,9.26120268]
[1737813980891,0.02862213,249.78,249.7,10.52370268]
[1737813981289,0.02862213,249.78,249.77,4.0042]
[1737813982888,0.02862213,249.78,249.76,4.0044]
[1737813984496,4.0044,249.76,249.75,0.02448553]
[1737813984692,9.26120268,249.77,249.62,137.59620934]
[1737813984993,4.0055,249.69,249.64,4.0062]
[1737813985193,4.0055,249.69,249.62,137.59620934]
[1737813985893,4.0353162,249.68,249.62,141.60270934]
[1737813987197,0.0296162,249.68,249.62,137.59620934]
[1737813987391,0.0296162,249.68,249.63,4.0064]
[1737813987587,0.0296162,249.68,249.62,137.59620934]
[1737813987792,0.0296162,249.68,249.66,4.006]
[1737813988496,0.0296162,249.68,249.64,4.0062]
[1737813988796,0.0296162,249.68,249.61,1.2933]
[1737813989194,4.0353162,249.68,249.61,5.3]
[1737813989400,0.0296162,249.68,249.55,38.665414]
[1737813991599,4.0353162,249.68,249.55,38.665414]
[1737813991801,0.0296162,249.68,249.55,38.665414]
[1737813992000,4.006,249.66,249.6,4.007]
[1737813992201,0.0296162,249.68,249.55,38.665414]
[1737813992401,9.26120268,249.71,249.55,38.665414]
[1737813992703,0.03072989,249.64,249.55,9.26120268]
[1737813993203,0.03072989,249.64,249.61,4.0067]
[1737813994104,0.03072989,249.64,249.55,9.26120268]
[1737813994307,0.03072989,249.64,249.63,4.0065]
[1737813994703,0.03072989,249.64,249.55,9.26120268]
[1737813995702,0.03072989,249.64,249.58,9.26120268]
[1737813996401,0.03072989,249.64,249.63,4.0065]
[1737813997298,0.03072989,249.64,249.55,9.26120268]
[1737813997901,0.03072989,249.64,249.59,4.007]
[1737813998301,0.03072989,249.64,249.55,9.26120268]
[1737813998702,0.03072989,249.64,249.63,4.0065]
[1737814001808,0.03072989,249.64,249.61,4.0067]
[1737814002507,0.03072989,249.64,249.58,5.91567262]
[1737814002709,0.03072989,249.64,249.56,5.91567262]
[1737814003007,5.94640251,249.64,249.56,5.91567262]
[1737814003708,0.03072989,249.64,249.53,146.84028325]
[1737814004203,0.03072989,249.64,249.53,9.24407391]
[1737814004407,0.03072989,249.64,249.52,2.647]
[1737814004702,9.24407391,249.62,249.52,1.3403]
[1737814004905,4.007,249.6,249.52,1.3403]
[1737814005306,0.02767079,249.58,249.55,4.0077]
[1737814006912,0.02767079,249.58,249.54,4.0079]
[1737814007810,0.02767079,249.58,249.47,137.59620934]
[1737814008711,0.02767079,249.58,249.46,137.59620934]
[1737814009200,0.02767079,249.58,249.52,4.0082]
[1737814010009,4.03497079,249.58,249.52,4.0082]
[1737814010309,0.02767079,249.58,249.52,4.0082]
[1737814011013,0.02767079,249.58,249.53,4.008]
[1737814013015,4.03497079,249.58,249.51,4.0083]
[1737814013307,0.02767079,249.58,249.44,9.24407391]
[1737814013712,4.0074,249.57,249.5,4.0084]
[1737814014810,4.0076,249.56,249.51,4.0084]
[1737814015211,4.03624256,249.56,249.44,9.24407391]
[1737814015406,9.27271647,249.56,249.43,1.3733]
[1737814016012,4.0082,249.53,249.47,4.009]
[1737814016210,9.27271647,249.56,249.43,1.3733]
[1737814016413,4.0079,249.54,249.49,4.0087]
[1737814016713,0.03000823,249.52,249.47,9.24407391]
[1737814016913,4.0071,249.6,249.53,4.008]
[1737814017114,0.03045793,249.52,249.47,9.24407391]
[1737814017314,9.24407391,249.62,249.47,9.24407391]
[1737814017511,0.02707596,249.52,249.48,4.0088]
[1737814017716,4.0068,249.61,249.47,9.24407391]
[1737814017912,0.02814451,249.52,249.47,9.24407391]
[1737814018111,4.007,249.6,249.53,4.0079]
[1737814018512,0.028151,249.59,249.53,4.0079]
[1737814018813,4.0073,249.58,249.44,9.24407391]
[1737814019011,9.24407391,249.62,249.44,9.24407391]
[1737814019213,0.02966215,249.53,249.47,9.24407391]
[1737814019710,4.0068,249.61,249.47,9.24407391]
[1737814019908,9.24407391,249.62,249.47,9.24407391]
[1737814020712,9.24407391,249.66,249.51,9.24407391]
[1737814020913,0.02978957,249.57,249.52,0.02571886]
[1737814021216,4.0059,249.67,249.52,1.3764]
[1737814021916,4.006,249.66,249.52,1.3764]
[1737814022312,0.02945585,249.61,249.57,0.02588342]
[1737814022615,0.02945585,249.61,249.59,4.0071]
[1737814022816,0.02945585,249.61,249.57,0.02588342]
[1737814024017,1.3337,249.73,249.57,0.02588342]
[1737814024018,9.24407391,249.72,249.57,9.26995733]
[1737814024317,9.24407391,249.75,249.6,9.24407391]
[1737814025211,0.02824464,249.7,249.65,0.02948847]
[1737814025717,0.02824464,249.7,249.68,4.0056]
[1737814027216,5.91246954,249.75,249.69,5.91246954]
[1737814027423,5.91246954,249.78,249.71,5.91246954]
[1737814027613,5.91246954,249.78,249.66,1.3079]
[1737814027817,9.23447584,249.82,249.67,10.61637584]
[1737814028017,1.349,249.83,249.67,10.61637584]
[1737814028219,4.0034,249.83,249.67,10.61637584]
[1737814028521,10.55767584,249.85,249.73,0.02887274]
[1737814028522,0.02742259,249.77,249.73,0.02887274]
[1737814029021,0.02742259,249.77,249.75,4.0045]
[1737814029215,0.02742259,249.77,249.73,0.02887274]
[1737814030320,4.03172259,249.77,249.73,0.02887274]
[1737814031021,4.0047,249.75,249.73,0.02887274]
[1737814032214,9.23447584,249.76,249.62,137.59620934]
[1737814032417,4.0054,249.7,249.62,137.59620934]
[1737814032817,9.23447584,249.73,249.62,141.60270934]
[1737814033019,9.23447584,249.7,249.62,137.59620934]
[1737814033215,9.23447584,249.7,249.57,1.3614]
[1737814033423,9.23447584,249.67,249.64,0.02952317]
[1737814033718,4.0061,249.66,249.58,4.0072]
[1737814033919,4.0061,249.66,249.63,0.02550216]
[1737814035528,4.0061,249.66,249.58,4.0072]
[1737814036625,0.02638196,249.64,249.6,0.03078102]
[1737814037016,4.0067,249.62,249.6,0.03078102]
[1737814037725,9.2608578,249.64,249.6,0.03078102]
[1737814038725,0.02638196,249.64,249.6,0.03078102]
[1737814040124,0.02638196,249.64,249.61,4.0068]
[1737814040523,0.02638196,249.64,249.6,0.03078102]
[1737814040824,0.02638196,249.64,249.61,4.0068]
[1737814041024,0.02638196,249.64,249.6,0.03078102]
[1737814042129,0.02638196,249.64,249.62,4.0065]
[1737814043325,0.02638196,249.64,249.6,0.03078102]
[1737814043729,9.23447584,249.63,249.6,0.03078102]
[1737814044830,4.0068,249.61,249.6,0.03078102]
[1737814045030,9.23447584,249.63,249.6,0.03078102]
[1737814045632,13.24107584,249.63,249.6,0.03078102]
[1737814045932,4.0066,249.63,249.6,0.03078102]
[1737814047833,0.02638196,249.64,249.6,0.03078102]
[1737814048033,4.0066,249.62,249.6,0.03078102]
[1737814051936,4.0065,249.63,249.6,0.03078102]
[1737814052133,0.02638196,249.64,249.6,0.03078102]
[1737814052634,4.0068,249.61,249.6,0.03078102]
[1737814052834,9.23447584,249.63,249.46,1.3283]
[1737814053740,4.0073,249.58,249.46,1.3283]
[1737814053937,0.02838063,249.57,249.52,0.02576404]
[1737814056134,0.02838063,249.57,249.56,4.0076]
[1737814057438,0.02838063,249.57,249.56,3.97422998]
[1737814057832,0.02838063,249.57,249.52,0.02576404]
[1737814058031,0.02838063,249.57,249.54,4.0078]
[1737814058632,0.02838063,249.57,249.55,4.0077]
[1737814061140,0.02838063,249.57,249.52,0.02576404]
[1737814061341,0.02838063,249.57,249.56,4.0076]
[1737814064445,0.02838063,249.57,249.52,0.02576404]
[1737814066346,0.02838063,249.57,249.53,4.008]
[1737814066845,4.03588063,249.57,249.52,0.02576404]
[1737814067044,0.02838063,249.57,249.52,0.02576404]
[1737814067742,0.02838063,249.57,249.54,9.92552912]
[1737814068047,0.02838063,249.57,249.54,5.91772912]
[1737814068250,0.02838063,249.57,249.55,4.0077]
[1737814068445,0.02838063,249.57,249.56,5.91772912]
[1737814068746,0.02838063,249.57,249.56,9.92532912]
[1737814069747,9.92352912,249.68,249.61,4.0067]
[1737814069948,5.91772912,249.68,249.6,5.91772912]
[1737814070251,9.92382912,249.66,249.6,4.0069]
[1737814070948,0.02710198,249.65,249.61,0.0266182]
[1737814071650,4.0064,249.64,249.61,0.0266182]
[1737814073052,4.0066,249.62,249.61,0.0266182]
[1737814073245,9.92432912,249.62,249.61,0.0266182]
[1737814079652,4.0073,249.58,249.53,4.0079]
[1737814080051,4.0073,249.58,249.5,0.71883006]
[1737814080348,4.0073,249.58,249.46,138.92450934]
[1737814080349,5.91772912,249.62,249.58,4.0072]
[1737814080547,5.91772912,249.64,249.56,5.91772912]
[1737814080742,5.91772912,249.64,249.58,0.0281931]
[1737814081047,0.02569841,249.62,249.58,0.0281931]
[1737814081351,0.02569841,249.62,249.6,4.0069]
[1737814082353,0.02569841,249.62,249.61,4.0068]
[1737814082852,0.02569841,249.62,249.6,4.0069]
[1737814083449,0.02569841,249.62,249.61,4.0068]
[1737814084652,9.92312912,249.7,249.6,5.91772912]
[1737814084853,9.92312912,249.7,249.64,4.0062]
[1737814085054,4.0056,249.69,249.62,5.91772912]
[1737814085859,0.02705856,249.68,249.63,0.02723321]
[1737814086658,5.94478768,249.68,249.63,0.02723321]
[1737814087359,0.02705856,249.68,249.67,4.0058]
[1737814087748,0.02705856,249.68,249.64,5.91772912]
[1737814089059,0.02705856,249.68,249.65,4.0061]
[1737814089954,5.94478768,249.68,249.63,0.02723321]
[1737814090358,5.94478768,249.68,249.64,4.0063]
[1737814090557,0.02705856,249.68,249.64,5.91772912]
[1737814091061,0.02705856,249.68,249.67,4.0058]
[1737814091863,0.02705856,249.68,249.63,0.02723321]
[1737814092064,5.94478768,249.68,249.63,4.03353321]
[1737814092759,5.94478768,249.68,249.63,0.02723321]
[1737814092960,0.02705856,249.68,249.64,4.0063]
[1737814093552,0.02705856,249.68,249.63,0.02723321]
[1737814093757,0.02705856,249.68,249.67,4.0058]
[1737814094161,0.02705856,249.68,249.64,5.91772912]
[1737814094362,0.02705856,249.68,249.65,4.006]
[1737814094661,0.02705856,249.68,249.64,5.91772912]
[1737814095259,0.02705856,249.68,249.67,4.0058]
[1737814097966,7.22502912,249.76,249.72,4.0049]
[1737814098965,5.91772912,249.74,249.65,5.91772912]
[1737814099264,5.91772912,249.7,249.67,0.02921777]
[1737814100368,0.02612113,249.71,249.67,0.02921777]
[1737814102668,0.02612113,249.71,249.67,4.03501777]
[1737814102872,0.02612113,249.71,249.67,0.02921777]
[1737814103073,0.02612113,249.71,249.69,4.0055]
[1737814103375,0.02612113,249.71,249.67,0.02921777]
[1737814103770,0.02612113,249.71,249.67,4.03501777]
[1737814103969,0.02612113,249.71,249.67,0.02921777]
[1737814104275,0.02612113,249.71,249.68,4.0056]
[1737814104772,0.02612113,249.71,249.67,0.02921777]
[1737814105372,0.02612113,249.71,249.67,4.03501777]
[1737814106374,0.02612113,249.71,249.67,0.02921777]
[1737814106575,4.0053,249.7,249.67,0.02921777]
[1737814106875,5.91772912,249.7,249.67,0.02921777]
[1737814107073,4.0057,249.68,249.67,0.02921777]
[1737814107268,9.92342912,249.68,249.67,0.02921777]
[1737814107573,5.91772912,249.68,249.57,144.83863846]
[1737814107773,5.91772912,249.66,249.57,144.83863846]
[1737814108078,5.91772912,249.66,249.57,7.24242912]
[1737814108574,0.02546209,249.64,249.59,0.02950201]
[1737814109172,0.02546209,249.64,249.59,4.03650201]
[1737814111078,4.03176209,249.64,249.59,0.02950201]
[1737814112579,9.94949121,249.64,249.59,0.02950201]
[1737814112878,0.02546209,249.64,249.59,4.03660201]
[1737814114276,0.02546209,249.64,249.61,4.0068]
[1737814114977,0.02546209,249.64,249.6,4.0069]
[1737814115881,0.02546209,249.64,249.61,4.0068]
[1737814116977,9.94959121,249.64,249.59,4.03650201]
[1737814117180,5.94319121,249.64,249.59,0.02950201]
[1737814117576,5.91772912,249.62,249.59,0.02950201]
[1737814117873,5.91772912,249.6,249.59,0.02950201]
[1737814118076,9.92462912,249.6,249.59,0.02950201]
[1737814120078,4.0082,249.52,249.51,137.59620934]
[1737814120277,9.92592912,249.52,249.51,133.38125078]
[1737814120584,9.92592912,249.52,249.51,122.12465078]
[1737814121077,4.0089,249.49,249.41,169.20287741]
[1737814121273,5.91772912,249.47,249.43,165.70361517]
[1737814121483,5.91772912,249.47,249.45,0.02779591]
[1737814121780,5.94462273,249.47,249.45,0.02779591]
[1737814122174,0.02689361,249.47,249.45,0.02779591]
[1737814123583,0.02689361,249.47,249.45,4.03709591]
[1737814124983,0.02689361,249.47,249.45,0.02779591]
[1737814125984,4.03589361,249.47,249.45,0.02779591]
[1737814126680,0.02689361,249.47,249.45,0.02779591]
[1737814127482,0.02689361,249.47,249.39,9.2571255]
[1737814127886,0.02689361,249.47,249.44,4.0094]
[1737814129389,0.02689361,249.47,249.39,9.2571255]
[1737814129589,0.02689361,249.47,249.36,9.2571255]
[1737814130988,4.0094,249.45,249.39,4.0103]
[1737814131392,0.02689361,249.47,249.39,4.0103]
[1737814131593,4.0093,249.46,249.39,4.0103]
[1737814131794,0.02689361,249.47,249.36,9.2571255]
[1737814132093,0.02689361,249.47,249.32,9.2571255]
[1737814132288,9.2571255,249.45,249.29,174.96074067]
[1737814132484,0.02594225,249.42,249.29,174.96074067]
[1737814132884,9.28306775,249.42,249.29,174.96074067]
[1737814133187,9.28306775,249.42,249.29,9.2571255]
[1737814134194,4.0105,249.39,249.32,4.0114]
[1737814134390,9.28306775,249.42,249.32,4.0114]
[1737814134889,4.0108,249.37,249.3,4.0117]
[1737814135094,9.2571255,249.42,249.28,2.5961]
[1737814135393,0.02996899,249.36,249.28,2.5961]
[1737814136094,0.02996899,249.36,249.31,4.0116]
[1737814136597,9.28709449,249.36,249.24,406.30052974]
[1737814136790,9.2571255,249.33,249.24,406.30052974]
[1737814136994,9.2571255,249.33,249.24,358.55364719]
[1737814137194,0.02597486,249.31,249.24,358.55364719]
[1737814137596,4.0118,249.3,249.24,362.56634719]
[1737814137798,4.0118,249.3,249.24,4.0127]
[1737814138297,4.012,249.29,249.22,4.013]
[1737814138694,0.02604899,249.28,249.26,4.0123]
[1737814138899,9.2571255,249.36,249.23,9.2571255]
[1737814139299,9.2571255,249.36,249.2,9.2571255]
[1737814139996,0.02932394,249.3,249.26,0.02604899]
[1737814141702,0.02932394,249.3,249.27,4.0122]
[1737814142901,0.02932394,249.3,249.26,0.02604899]
[1737814143093,0.02932394,249.3,249.26,4.03844899]
[1737814143898,0.02932394,249.3,249.29,4.0119]
[1737814144099,0.02932394,249.3,249.26,0.02604899]
[1737814145301,9.2571255,249.39,249.26,0.02604899]
[1737814145502,9.2571255,249.39,249.23,9.2571255]
[1737814146503,0.02550179,249.33,249.29,0.0296082]
[1737814149404,0.02550179,249.33,249.21,0.73446966]
[1737814150010,0.02550179,249.33,249.31,4.0116]
[1737814150213,0.02550179,249.33,249.23,9.2571255]
[1737814150409,9.2571255,249.39,249.23,9.2571255]
[1737814150610,0.02792264,249.3,249.26,0.02576473]
[1737814152112,0.02792264,249.3,249.29,4.0119]
[1737814152611,4.0106,249.37,249.27,2.6711]
[1737814153208,4.0106,249.37,249.3,4.0118]
[1737814153611,0.02842522,249.36,249.31,0.02865707]
[1737814153910,5.93010916,249.35,249.31,4.04025707]
[1737814156015,5.93010916,249.33,249.31,4.04025707]
[1737814157812,5.93010916,249.33,249.31,0.02865707]
[1737814158014,9.94150916,249.33,249.31,0.02865707]
[1737814158217,5.93010916,249.33,249.31,0.02865707]
[1737814160115,0.02842522,249.36,249.31,5.95876623]
[1737814160512,5.93010916,249.39,249.31,5.95876623]
[1737814160708,5.93010916,249.43,249.35,5.93010916]
[1737814161614,5.93010916,249.41,249.35,4.0109]
[1737814161814,5.93010916,249.39,249.37,0.02942398]
[1737814162512,5.93010916,249.56,249.38,5.93010916]
[1737814162716,5.93010916,249.56,249.47,5.93010916]
[1737814163217,5.93010916,249.56,249.49,9.93870916]
[1737814163710,0.0595,249.68,249.49,9.93870916]
[1737814163711,0.02568058,249.55,249.5,0.02896624]
[1737814164014,9.24990814,249.58,249.47,4.009]
[1737814164213,0.0303621,249.55,249.5,0.02587071]
[1737814165815,0.0303621,249.55,249.53,4.0079]
[1737814166016,0.0303621,249.55,249.5,0.02587071]
[1737814166418,0.0303621,249.55,249.51,4.0083]
[1737814167023,0.0303621,249.55,249.52,4.0082]
[1737814167920,0.0303621,249.55,249.53,4.008]
[1737814168419,4.0062,249.65,249.55,4.0077]
[1737814168823,4.0062,249.65,249.51,10.62510814]
[1737814169220,9.24990814,249.67,249.51,10.62510814]
[1737814169426,4.0064,249.64,249.56,4.0075]
[1737814169627,0.03056418,249.61,249.57,0.02836112]
[1737814171126,0.03056418,249.61,249.51,1.24389935]
[1737814172326,0.03056418,249.61,249.54,0.02630508]
[1737814172528,0.03056418,249.61,249.56,4.0076]
[1737814172827,0.03056418,249.61,249.54,0.02630508]
[1737814173525,0.03056418,249.61,249.55,9.24990814]
[1737814174129,0.03056418,249.61,249.56,4.0075]
[1737814174325,0.03056418,249.61,249.55,10.56360814]
[1737814174833,0.03056418,249.61,249.59,4.0071]
[1737814175928,0.03056418,249.61,249.57,4.0073]
[1737814176124,0.03056418,249.61,249.55,10.56360814]
[1737814176723,0.03056418,249.61,249.58,9.24990814]
[1737814176923,0.03056418,249.61,249.59,1.368]
[1737814177137,0.03056418,249.61,249.6,4.0069]
[1737814177432,202.24990814,249.72,249.59,1.368]
[1737814178328,4.0054,249.7,249.63,4.0064]
[1737814178531,0.02986675,249.68,249.63,4.03185625]
[1737814178730,0.02986675,249.68,249.63,0.02545625]
[1737814179133,4.03556675,249.68,249.63,0.02545625]
[1737814179825,0.02986675,249.68,249.63,4.03195625]
[1737814180437,0.02986675,249.68,249.65,4.0061]
[1737814182729,0.02986675,249.68,249.63,4.03185625]
[1737814182939,0.02986675,249.68,249.63,0.02545625]
[1737814184230,0.02986675,249.68,249.64,9.24990814]
[1737814184740,0.02986675,249.68,249.67,4.0058]
[1737814185040,9.24990814,249.78,249.67,4.0058]
[1737814185243,9.24990814,249.84,249.67,9.24990814]
[1737814185541,4.0039,249.8,249.7,9.24990814]
[1737814185931,4.0039,249.8,249.73,4.0049]
[1737814186336,0.02881544,249.79,249.74,0.03013654]
[1737814186634,4.03271544,249.79,249.74,0.03013654]
[1737814186831,0.02881544,249.79,249.74,0.03013654]
[1737814189239,4.0045,249.75,249.74,0.03013654]
[1737814194945,4.0055,249.69,249.65,4.006]
[1737814196250,0.03050777,249.69,249.65,4.03359987]
[1737814196750,0.03050777,249.69,249.65,0.02759987]
[1737814196949,0.03050777,249.69,249.66,4.006]
[1737814197147,0.03050777,249.69,249.65,0.02759987]
[1737814198146,4.005,249.73,249.67,9.24990814]
[1737814199152,4.005,249.73,249.67,13.25560814]
[1737814199351,0.0300885,249.72,249.68,0.02609501]
[1737814199952,0.0300885,249.72,249.69,4.0055]
[1737814203361,0.0300885,249.72,249.68,0.02609501]
[1737814203966,0.0300885,249.72,249.68,5.93853331]
[1737814204462,0.0300885,249.72,249.68,9.94403331]